Workbook

Sheet Лист1
A1: ПЕРЕСЧЕТ ОТДЕЛЬНЫХ ФОРМУЛ В РАБОЧЕЙ КНИГЕ
A2: Формула | B2: =SUM(C2:F2) -> 3.19941795 | C2: =RAND() -> 0.9753286938 | D2: =RAND() -> 0.5797392496 | E2: =RAND() -> 0.7810201136 | F2: =RAND() -> 0.8633298927 | G2: =SUM(H2:I2) -> 1.847684244 | H2: =RAND() -> 0.9852068308 | I2: 0.8624774134
A4: Наим | B4: Столбец 1 | C4: Столбец 2 | D4: Столбец 3 | E4: Столбец 4 | F4: Столбец 5 | G4: Столбец 6 | H4: Столбец 7 | I4: Столбец 8 | J4: Столбец1 | K4: Признак
A6: Строка 1 | B6: =SUM(C6:F6) -> 15.91446538 | C6: =SUM(C7,C9,C14) -> 5.163858846 | D6: =SUM(D7,D9,D14) -> 3.613667886 | E6: 3.610092936 | F6: 3.526845711 | G6: =SUM(H6:I6) -> 5.818096033 | H6: =SUM(H7,H9,H14) -> 2.441148702 | I6: 3.376947331
A7: Строка 2 | B7: =SUM(C7:F7) -> 1.497653682 | C7: =SUM(C8:C8) -> 0.08637921887 | D7: =SUM(D8:D8) -> 0.09354224872 | E7: 0.7444783947 | F7: 0.5732538202 | G7: =SUM(H7:I7) -> 0.7049894821 | H7: =SUM(H8:H8) -> 0.1699471095 | I7: 0.5350423726
A8: Строка 3 | B8: 1.497653682 | C8: 0.08637921887 | D8: 0.09354224872 | E8: 0.7444783947 | F8: 0.5732538202 | G8: 0.7049894821 | H8: 0.1699471095 | I8: 0.5350423726 | K8: 1
A9: Строка 4 | B9: =SUM(C9:F9) -> 7.888546031 | C9: =SUM(C10:C13) -> 3.432649409 | D9: =SUM(D10:D13) -> 1.988099216 | E9: 1.197498431 | F9: 1.270298975 | G9: =SUM(H9:I9) -> 3.711781708 | H9: =SUM(H10:H13) -> 1.468172581 | I9: 2.243609127
A10: Строка 5 | B10: 2.535065303 | C10: 0.9745361991 | D10: 0.4845673446 | E10: 0.176992196 | F10: 0.8989695633 | G10: 0.7524635518 | H10: 0.2498257979 | I10: 0.5026377539 | K10: 1
A11: Строка 6 | B11: 1.818903241 | C11: 0.8509109991 | D11: 0.5300771749 | E11: 0.3581750359 | F11: 0.07974003075 | G11: 0.9940607467 | H11: 0.3952124168 | I11: 0.5988483298
A12: Строка 7 | B12: 1.734656756 | C12: 0.8209749749 | D12: 0.3780501113 | E12: 0.451603513 | F12: 0.08402815668 | G12: 0.4671316147 | H12: 0.07346503175 | I12: 0.3936665829 | K12: 1
A13: Строка 8 | B13: 1.799920732 | C13: 0.7862272357 | D13: 0.5954045855 | E13: 0.2107276863 | F13: 0.2075612241 | G13: 1.498125794 | H13: 0.7496693341 | I13: 0.7484564603 | K13: 1
A14: Строка 9 | B14: =SUM(C14:F14) -> 6.528265666 | C14: =SUM(C15:C17) -> 1.644830219 | D14: =SUM(D15:D17) -> 1.532026421 | E14: =SUM(E15:E17) -> 1.66811611 | F14: =SUM(F15:F17) -> 1.683292916 | G14: =SUM(H14:I14) -> 1.401324843 | H14: =SUM(H15:H17) -> 0.8030290117 | I14: =SUM(I15:I17) -> 0.5982958316
A15: Строка 10 | B15: 2.202446464 | C15: 0.4847385281 | D15: 0.6995121634 | E15: 0.3261671708 | F15: 0.6920286016 | G15: 0.3868927551 | H15: 0.1592182308 | I15: 0.2276745243 | K15: 1
A16: Строка 11 | B16: 2.43374117 | C16: 0.9898271978 | D16: 0.2860386738 | E16: 0.9085451755 | F16: 0.2493301225 | G16: 0.4570269081 | H16: 0.242316752 | I16: 0.214710156 | K16: 1
A17: Строка 12 | B17: 1.892078033 | C17: 0.1702644928 | D17: 0.5464755842 | E17: 0.4334037638 | F17: 0.7419341919 | G17: 0.5574051801 | H17: 0.4014940289 | I17: 0.1559111512 | K17: 1
